[Event "WYCC 2018 G16"]
[Site "Halkidiki"]
[Date "2018.10.29"]
[Round "10"]
[White "Leonova, Ameliya"]
[Black "Kvendseth, Thyra"]
[Result "1/2-1/2"]
[ECO "A45"]
[WhiteElo "1736"]
[BlackElo "1854"]
[Annotator "NA"]
[PlyCount "115"]
[EventDate "2018.10.20"]
[EventType "swiss"]
[EventCountry "GRE"]
[SourceTitle "playchess.com"]
[Source "ChessBase"]
[SourceQuality "1"]
[TimeControl "40/5400+30:1800+30"]

1. d4 {[%emt 0:00:00]} Nf6 {[%emt 0:00:00]} 2. g3 {[%emt 0:00:00]} g6 {[%emt 0:00:00]} 3. Bg2 {[%emt 0:00:00]} Bg7 {[%emt 0:00:00]} 4. e4 {[%emt 0:00:13]} d6 {[%emt 0:00:02]} 5. Ne2 {[%emt 0:00:07]} O-O {[%emt 0:00:45]} 6. O-O {[%emt 0:00:10]} Nbd7 {[%emt 0:02:47]} 7. Nbc3 {[%emt 0:00:17]} e5 {[%emt 0:02:30]} 8. h3 {[%emt 0:00:45]} c6 {[%emt 0:04:35]} 9. a4 {[%emt 0:00:07]} a5 {[%emt 0:02:26]} 10. Be3 {[%emt 0:00:10]} Qe7 {[%emt 0:06:31]} 11. Qd2 {[%emt 0:04:22]} exd4 {[%emt 0:05:25]} 12. Bxd4 {[%emt 0:00:24]} Nc5 {[%emt 0:01:44]} 13. f3 {[%emt 0:06:18]} Ne6 {[%emt 0:13:11]} 14. Be3 {[%emt 0:01:11]} Nc7 {[%emt 0:10:04]} 15. Bg5 {[%emt 0:10:58]} d5 {[%emt 0:03:54]} 16. exd5 {[%emt 0:00:58]} Ncxd5 {[%emt 0:00:11]} 17. Nxd5 {[%emt 0:00:09]} Qc5+ {[%emt 0:00:46]} 18. Be3 {[%emt 0:19:11]} Qxd5 {[%emt 0:00:06]} 19. Rad1 {[%emt 0:00:57]} Re8 {[%emt 0:06:24]} 20. Nc3 {[%emt 0:04:05]} Qe5 {[%emt 0:05:41]} 21. Rfe1 {[%emt 0:02:38]} Be6 {[%emt 0:08:22]} 22. Kh2 {[%emt 0:11:02]} Qc7 {[%emt 0:05:43]} 23. Qf2 {[%emt 0:02:23]} Nd7 {[%emt 0:01:39]} 24. Bd4 {[%emt 0:05:04]} f6 {[%emt 0:01:59]} 25. Ne4 {[%emt 0:01:09]} Bf5 {[%emt 0:00:54]} 26. Nc5 {[%emt 0:03:36]} Ne5 {[%emt 0:02:26]} 27. f4 {[%emt 0:01:12]} Nd7 {[%emt 0:03:09]} 28. Nxd7 {[%emt 0:00:55]} Bxd7 {[%emt 0:00:13]} 29. Bb6 {[%emt 0:00:46]} Qc8 {[%emt 0:00:36]} 30. Rxe8+ {[%emt 0:01:07]} Qxe8 {[%emt 0:00:07]} 31. Re1 {[%emt 0:01:06]} Qf7 {[%emt 0:00:50]} 32. Qc5 {[%emt 0:01:05]} Bf8 {[%emt 0:00:11]} 33. Qd4 {[%emt 0:01:13]} Bf5 {[%emt 0:01:55]} 34. Bf1 {[%emt 0:01:33]} Kg7 {[%emt 0:01:03]} 35. Bc4 {[%emt 0:00:23]} Qd7 {[%emt 0:00:19]} 36. Qxd7+ {[%emt 0:03:42]} Bxd7 {[%emt 0:00:00]} 37. Rd1 {[%emt 0:00:37]} Bf5 {[%emt 0:00:26]} 38. c3 {[%emt 0:03:10]} Be7 {[%emt 0:03:48]} 39. g4 {[%emt 0:01:11]} Bc2 {[%emt 0:01:08]} 40. Rd7 {[%emt 0:00:00]} Kf8 {[%emt 0:00:00]} 41. b3 {[%emt 0:00:49]} Rb8 {[%emt 0:04:20]} 42. Kg3 {[%emt 0:03:43]} h6 {[%emt 0:04:33]} 43. Bxa5 {[%emt 0:01:22]} b5 {[%emt 0:00:59]} 44. axb5 {[%emt 0:00:32]} cxb5 {[%emt 0:00:06]} 45. Bd3 {[%emt 0:00:47]} Bxb3 {[%emt 0:00:54]} 46. Bxg6 {[%emt 0:00:35]} Be6 {[%emt 0:02:08]} 47. Rd2 {[%emt 0:06:15]} Ra8 {[%emt 0:02:34]} 48. Bb4 {[%emt 0:04:26]} Bxb4 {[%emt 0:01:23]} 49. cxb4 {[%emt 0:00:13]} Ra3+ {[%emt 0:00:31]} 50. Rd3 {[%emt 0:00:49]} Ra4 {[%emt 0:00:53]} 51. Re3 {[%emt 0:03:14]} Bd5 {[%emt 0:04:14]} 52. Re8+ {[%emt 0:00:36]} Kg7 {[%emt 0:00:01]} 53. f5 {[%emt 0:00:19]} Rxb4 {[%emt 0:01:41]} 54. Re7+ {[%emt 0:00:10]} Kf8 {[%emt 0:00:08]} 55. Re8+ {[%emt 0:00:03]} Kg7 {[%emt 0:00:12]} 56. Re7+ {[%emt 0:00:05]} Kf8 {[%emt 0:00:07]} 57. Re8+ {[%emt 0:00:05]} Kg7 {[%emt 0:00:07]} 58. Re7+ {[%emt 0:00:06]} 1/2-1/2

[Event "WYCC 2018 G16"]
[Site "Halkidiki"]
[Date "2018.10.29"]
[Round "10"]
[White "Sanabria Taskila, Jenny Maria"]
[Black "Bulatova, Kamaliya"]
[Result "0-1"]
[ECO "B94"]
[WhiteElo "1728"]
[BlackElo "2108"]
[Annotator "NA"]
[PlyCount "80"]
[EventDate "2018.10.20"]
[EventType "swiss"]
[EventCountry "GRE"]
[SourceTitle "playchess.com"]
[Source "ChessBase"]
[SourceQuality "1"]
[TimeControl "40/5400+30:1800+30"]

1. e4 {[%emt 0:00:00]} c5 {[%emt 0:00:00]} 2. Nf3 {[%emt 0:00:00]} d6 {[%emt 0:00:00]} 3. d4 {[%emt 0:00:00]} cxd4 {[%emt 0:00:00]} 4. Nxd4 {[%emt 0:00:00]} Nf6 {[%emt 0:00:00]} 5. Nc3 {[%emt 0:00:00]} a6 {[%emt 0:00:00]} 6. Bg5 {[%emt 0:00:00]} Nbd7 {[%emt 0:00:00]} 7. Bc4 {[%emt 0:00:03]} h6 {[%emt 0:00:52]} 8. Bxf6 {[%emt 0:00:07]} Nxf6 {[%emt 0:00:04]} 9. Qe2 {[%emt 0:00:08]} e5 {[%emt 0:02:50]} 10. Nf3 {[%emt 0:05:31]} b5 {[%emt 0:04:51]} 11. Bb3 {[%emt 0:02:29]} Bb7 {[%emt 0:04:08]} 12. O-O-O {[%emt 0:06:01]} Qb6 {[%emt 0:03:51]} 13. Nh4 {[%emt 0:03:50]} Rc8 {[%emt 0:03:01]} 14. f4 {[%emt 0:10:19]} Rxc3 {[%emt 0:07:23]} 15. bxc3 {[%emt 0:01:32]} Qa5 {[%emt 0:09:39]} 16. Bd5 {[%emt 0:17:05]} Qxc3 {[%emt 0:10:10]} 17. Qd3 {[%emt 0:13:49]} Nxd5 {[%emt 0:07:03]} 18. exd5 {[%emt 0:01:20]} Qa1+ {[%emt 0:04:21]} 19. Kd2 {[%emt 0:00:10]} Qxa2 {[%emt 0:00:07]} 20. fxe5 {[%emt 0:13:19]} dxe5 {[%emt 0:03:01]} 21. d6 {[%emt 0:01:31]} Qa4 {[%emt 0:02:51]} 22. Nf3 {[%emt 0:06:53]} Qf4+ {[%emt 0:02:32]} 23. Kc3 {[%emt 0:02:23]} e4 {[%emt 0:05:37]} 24. d7+ {[%emt 0:04:18]} Kd8 {[%emt 0:00:06]} 25. Qd4 {[%emt 0:00:08]} Qc7+ {[%emt 0:00:49]} 26. Kb2 {[%emt 0:00:47]} f6 {[%emt 0:02:36]} 27. Nh4 {[%emt 0:04:34]} Bc5 {[%emt 0:01:54]} 28. Qc3 {[%emt 0:00:31]} Bd6 {[%emt 0:08:44]} 29. Qxc7+ {[%emt 0:02:57]} Kxc7 {[%emt 0:00:06]} 30. Nf5 {[%emt 0:00:36]} Be5+ {[%emt 0:00:06]} 31. Ka3 {[%emt 0:00:44]} Bc6 {[%emt 0:00:23]} 32. d8=Q+ Rxd8 {[%emt 0:00:18]} 33. Rxd8 {[%emt 0:01:14]} Kxd8 {[%emt 0:00:02]} 34. Rd1+ {[%emt 0:00:59]} Kc7 {[%emt 0:01:21]} 35. Nxg7 {[%emt 0:00:17]} Bd7 {[%emt 0:02:32]} 36. h3 {[%emt 0:00:52]} f5 {[%emt 0:00:25]} 37. Nh5 {[%emt 0:03:12]} Be8 {[%emt 0:00:05]} 38. g4 {[%emt 0:00:04]} Bxh5 {[%emt 0:00:19]} 39. gxh5 {[%emt 0:00:05]} e3 {[%emt 0:00:14]} 40. Kb3 {[%emt 0:00:00]} Bg3 {[%emt 0:00:00]} 0-1

[Event "WYCC 2018 G16"]
[Site "Halkidiki"]
[Date "2018.10.29"]
[Round "10"]
[White "Plaza Reino, Mercedes"]
[Black "Aubert, Estee"]
[Result "0-1"]
[ECO "E68"]
[WhiteElo "1727"]
[BlackElo "2064"]
[Annotator "NA"]
[PlyCount "96"]
[EventDate "2018.10.20"]
[EventType "swiss"]
[EventCountry "GRE"]
[SourceTitle "playchess.com"]
[Source "ChessBase"]
[SourceQuality "1"]
[TimeControl "40/5400+30:1800+30"]

1. d4 {[%emt 0:00:00]} Nf6 {[%emt 0:00:00]} 2. c4 {[%emt 0:00:00]} g6 {[%emt 0:00:00]} 3. Nc3 {[%emt 0:00:00]} Bg7 {[%emt 0:00:00]} 4. Nf3 {[%emt 0:00:00]} d6 {[%emt 0:00:00]} 5. g3 {[%emt 0:00:03]} O-O {[%emt 0:00:00]} 6. Bg2 {[%emt 0:00:05]} Nbd7 {[%emt 0:00:03]} 7. O-O {[%emt 0:00:14]} e5 {[%emt 0:00:04]} 8. e4 {[%emt 0:00:19]} exd4 {[%emt 0:00:10]} 9. Nxd4 {[%emt 0:00:10]} Re8 {[%emt 0:03:01]} 10. Re1 {[%emt 0:03:42]} Ng4 {[%emt 0:08:17]} 11. Qxg4 {[%emt 0:29:20]} Bxd4 {[%emt 0:00:03]} 12. Qd1 {[%emt 0:03:22]} Bg7 {[%emt 0:01:06]} 13. Be3 {[%emt 0:02:47]} Ne5 {[%emt 0:01:18]} 14. Bd4 {[%emt 0:09:27]} Bg4 {[%emt 0:03:15]} 15. f3 {[%emt 0:11:06]} Bxf3 {[%emt 0:05:17]} 16. Bxf3 {[%emt 0:00:27]} Nxf3+ {[%emt 0:00:05]} 17. Qxf3 {[%emt 0:00:05]} Bxd4+ {[%emt 0:00:03]} 18. Kg2 {[%emt 0:00:52]} c6 {[%emt 0:03:28]} 19. Rf1 {[%emt 0:01:50]} Qe7 {[%emt 0:02:56]} 20. Rae1 {[%emt 0:01:08]} Rad8 {[%emt 0:04:13]} 21. b3 {[%emt 0:03:11]} Rd7 {[%emt 0:02:56]} 22. Ne2 {[%emt 0:11:17]} Bg7 {[%emt 0:05:21]} 23. Nf4 {[%emt 0:01:22]} Qe5 {[%emt 0:03:33]} 24. Re3 {[%emt 0:04:53]} Rde7 {[%emt 0:03:39]} 25. Rfe1 {[%emt 0:03:32]} Qc5 {[%emt 0:08:38]} 26. h4 {[%emt 0:01:57]} Qa5 {[%emt 0:09:21]} 27. R1e2 {[%emt 0:02:38]} Bd4 {[%emt 0:02:38]} 28. Rd3 {[%emt 0:00:25]} Qc5 {[%emt 0:03:25]} 29. Rd1 {[%emt 0:01:16]} Bg7 {[%emt 0:04:09]} 30. h5 {[%emt 0:03:12]} g5 {[%emt 0:08:15]} 31. Nd3 {[%emt 0:00:44]} Qa5 {[%emt 0:03:01]} 32. Nf2 {[%emt 0:01:10]} Re6 {[%emt 0:01:20]} 33. Ng4 {[%emt 0:00:54]} h6 {[%emt 0:00:16]} 34. Rf2 {[%emt 0:02:17]} R8e7 {[%emt 0:00:16]} 35. Ne3 {[%emt 0:01:37]} Rf6 {[%emt 0:06:42]} 36. Nf5 {[%emt 0:00:21]} Ree6 {[%emt 0:00:55]} 37. Rdf1 {[%emt 0:01:13]} Qe5 {[%emt 0:01:13]} 38. Re2 {[%emt 0:00:58]} d5 {[%emt 0:01:28]} 39. cxd5 {[%emt 0:00:26]} cxd5 {[%emt 0:00:03]} 40. Rc2 {[%emt 0:00:00]} dxe4 {[%emt 0:00:00]} 41. Rc8+ {[%emt 0:06:04]} Kh7 {[%emt 0:04:06]} 42. Qd1 {[%emt 0:03:12]} Rxf5 {[%emt 0:08:45]} 43. Qd8 {[%emt 0:11:45]} Qb2+ {[%emt 0:00:28]} 44. Kh3 {[%emt 0:00:30]} g4+ {[%emt 0:00:19]} 45. Kxg4 {[%emt 0:00:51]} Rg5+ {[%emt 0:03:09]} 46. Kh3 {[%emt 0:03:31]} Rxh5+ {[%emt 0:00:14]} 47. Kg4 {[%emt 0:00:24]} Qe2+ {[%emt 0:00:59]} 48. Kf4 {[%emt 0:00:42]} Be5# {[%emt 0:00:06]} 0-1

[Event "WYCC 2018 G16"]
[Site "Halkidiki"]
[Date "2018.10.29"]
[Round "10"]
[White "Golsta, Ramona"]
[Black "Gombocz, Zsofia"]
[Result "1/2-1/2"]
[ECO "C54"]
[WhiteElo "1681"]
[BlackElo "2038"]
[Annotator "NA"]
[PlyCount "124"]
[EventDate "2018.10.20"]
[EventType "swiss"]
[EventCountry "GRE"]
[SourceTitle "playchess.com"]
[Source "ChessBase"]
[SourceQuality "1"]
[TimeControl "40/5400+30:1800+30"]

1. e4 {[%emt 0:00:00]} e5 {[%emt 0:00:00]} 2. Nf3 {[%emt 0:00:00]} Nc6 {[%emt 0:00:00]} 3. Bc4 {[%emt 0:00:07]} Bc5 {[%emt 0:00:00]} 4. c3 {[%emt 0:00:43]} Nf6 {[%emt 0:00:06]} 5. d4 {[%emt 0:00:43]} exd4 {[%emt 0:00:26]} 6. e5 {[%emt 0:00:26]} d5 {[%emt 0:01:18]} 7. Be2 {[%emt 0:01:42]} Ne4 {[%emt 0:00:48]} 8. cxd4 {[%emt 0:01:22]} Bb6 {[%emt 0:04:40]} 9. O-O {[%emt 0:03:55]} O-O {[%emt 0:01:11]} 10. Nc3 {[%emt 0:01:42]} Bf5 {[%emt 0:07:20]} 11. Be3 {[%emt 0:03:21]} f6 {[%emt 0:09:38]} 12. exf6 $14 {[%emt 0:09:05]} Nxc3 {[%emt 0:00:16]} 13. bxc3 {[%emt 0:01:13]} Qxf6 {[%emt 0:00:15]} 14. Qb3 {[%emt 0:08:06]} Qd6 {[%emt 0:05:36]} 15. Rfe1 {[%emt 0:05:02]} Rae8 {[%emt 0:07:32]} 16. Bb5 {[%emt 0:04:48]} Na5 {[%emt 0:26:09]} 17. Qb4 {[%emt 0:05:49]} Re6 {[%emt 0:03:29]} 18. Ne5 {[%emt 0:06:50]} a6 {[%emt 0:10:31]} 19. Bd7 {[%emt 0:06:59]} Re7 {[%emt 0:05:14]} 20. Ba4 {[%emt 0:13:30]} Qf6 {[%emt 0:02:28]} 21. Nf3 {[%emt 0:10:58]} h6 {[%emt 0:03:07]} 22. Ne5 {[%emt 0:00:22]} Nc6 {[%emt 0:05:46]} 23. Bxc6 {[%emt 0:00:41]} bxc6 {[%emt 0:00:15]} 24. Qa4 {[%emt 0:03:09]} c5 {[%emt 0:03:06]} 25. Qxa6 {[%emt 0:03:42]} cxd4 {[%emt 0:00:08]} 26. cxd4 {[%emt 0:00:05]} Qh4 {[%emt 0:00:59]} 27. Qb5 {[%emt 0:01:37]} Be4 {[%emt 0:01:53]} 28. f3 {[%emt 0:01:09]} Rf6 {[%emt 0:00:43]} 29. fxe4 {[%emt 0:01:03]} Qxe4 {[%emt 0:00:06]} 30. Qb1 {[%emt 0:01:23]} Rxe5 {[%emt 0:00:46]} 31. dxe5 {[%emt 0:01:15]} Bxe3+ {[%emt 0:00:07]} 32. Kh1 {[%emt 0:00:09]} Qxe5 {[%emt 0:00:07]} 33. Qb3 {[%emt 0:01:35]} Re6 {[%emt 0:00:08]} 34. a4 {[%emt 0:01:20]} c5 {[%emt 0:01:14]} 35. Rad1 {[%emt 0:01:06]} c4 {[%emt 0:00:39]} 36. Qb5 {[%emt 0:00:43]} c3 {[%emt 0:01:03]} 37. Qxd5 {[%emt 0:01:03]} c2 {[%emt 0:00:51]} 38. Qxe5 {[%emt 0:00:38]} Rxe5 {[%emt 0:00:06]} 39. Rd8+ {[%emt 0:00:16]} Kf7 {[%emt 0:00:14]} 40. Rc8 {[%emt 0:00:00]} Bc5 {[%emt 0:00:00]} 41. Rf1+ {[%emt 0:12:56]} Kg6 {[%emt 0:07:37]} 42. g3 {[%emt 0:01:30]} Rd5 {[%emt 0:00:46]} 43. Kg2 {[%emt 0:01:09]} Rd2+ {[%emt 0:01:02]} 44. Kh3 {[%emt 0:00:54]} Ba3 {[%emt 0:02:56]} 45. Rc6+ {[%emt 0:07:43]} Kh7 {[%emt 0:00:31]} 46. Rc7 {[%emt 0:00:16]} Rd1 {[%emt 0:03:06]} 47. Rff7 {[%emt 0:00:24]} c1=Q {[%emt 0:00:30]} 48. Rxg7+ {[%emt 0:00:19]} Kh8 {[%emt 0:00:07]} 49. Rxc1 {[%emt 0:01:49]} Rxc1 {[%emt 0:02:36]} 50. Rb7 {[%emt 0:02:14]} Rc4 {[%emt 0:04:29]} 51. a5 {[%emt 0:02:47]} Ra4 {[%emt 0:00:40]} 52. Rb6 {[%emt 0:00:05]} Kg7 {[%emt 0:00:44]} 53. a6 {[%emt 0:00:26]} Bc5 {[%emt 0:00:32]} 54. Rc6 {[%emt 0:00:45]} Bd4 {[%emt 0:00:33]} 55. Kg4 {[%emt 0:01:45]} Bg1+ {[%emt 0:00:32]} 56. Kf5 {[%emt 0:00:33]} Ra5+ {[%emt 0:00:34]} 57. Kg4 {[%emt 0:01:00]} Bxh2 {[%emt 0:00:47]} 58. Rc7+ {[%emt 0:00:02]} Kg6 {[%emt 0:00:12]} 59. a7 {[%emt 0:01:06]} Bg1 {[%emt 0:00:08]} 60. Rc6+ {[%emt 0:00:09]} Kg7 {[%emt 0:00:10]} 61. Rc7+ {[%emt 0:00:04]} Kg6 {[%emt 0:00:10]} 62. Rc6+ {[%emt 0:00:10]} Kg7 {[%emt 0:00:09]} 1/2-1/2

[Event "WYCC 2018 G16"]
[Site "Halkidiki"]
[Date "2018.10.29"]
[Round "10"]
[White "Simkunaite, Gabija"]
[Black "Hercog, Nusa"]
[Result "0-1"]
[ECO "B22"]
[WhiteElo "1650"]
[BlackElo "2017"]
[Annotator "NA"]
[PlyCount "102"]
[EventDate "2018.10.20"]
[EventType "swiss"]
[EventCountry "GRE"]
[SourceTitle "playchess.com"]
[Source "ChessBase"]
[SourceQuality "1"]
[TimeControl "40/5400+30:1800+30"]

1. e4 {[%emt 0:00:00]} c5 {[%emt 0:00:00]} 2. c3 {[%emt 0:00:03]} Nf6 {[%emt 0:00:00]} 3. e5 {[%emt 0:00:42]} Nd5 {[%emt 0:00:00]} 4. d4 {[%emt 0:00:37]} cxd4 {[%emt 0:00:15]} 5. Nf3 {[%emt 0:00:35]} Nc6 {[%emt 0:00:16]} 6. cxd4 {[%emt 0:00:31]} d6 {[%emt 0:00:43]} 7. Bc4 {[%emt 0:02:19]} e6 {[%emt 0:00:33]} 8. O-O {[%emt 0:00:42]} Be7 {[%emt 0:00:38]} 9. Bd2 {[%emt 0:00:56]} O-O {[%emt 0:01:37]} 10. Nc3 {[%emt 0:01:40]} dxe5 {[%emt 0:03:16]} 11. dxe5 {[%emt 0:01:02]} Nxc3 {[%emt 0:02:42]} 12. Bxc3 {[%emt 0:01:14]} Qc7 {[%emt 0:01:55]} 13. Qe2 {[%emt 0:04:26]} b6 $11 {[%emt 0:08:43]} 14. Rac1 {[%emt 0:05:24]} Bb7 {[%emt 0:05:28]} 15. Bd2 {[%emt 0:06:22]} Rfd8 {[%emt 0:07:51]} 16. Bb5 {[%emt 0:03:39]} Rac8 {[%emt 0:05:18]} 17. Rfd1 {[%emt 0:10:39]} Qb8 {[%emt 0:05:25]} 18. a3 {[%emt 0:06:13]} Nd4 {[%emt 0:07:23]} 19. Nxd4 {[%emt 0:00:33]} Rxd4 {[%emt 0:00:11]} 20. Bc3 {[%emt 0:03:23]} Rxd1+ {[%emt 0:12:50]} 21. Rxd1 {[%emt 0:00:13]} Bxa3 {[%emt 0:02:23]} 22. Rd7 {[%emt 0:08:04]} Rc7 {[%emt 0:05:01]} 23. Rd3 {[%emt 0:03:00]} Bf8 {[%emt 0:01:50]} 24. Rh3 {[%emt 0:03:15]} g6 {[%emt 0:02:51]} 25. Qg4 {[%emt 0:03:29]} Qd8 {[%emt 0:00:56]} 26. Rd3 {[%emt 0:00:47]} Bd5 {[%emt 0:02:05]} 27. Bc4 {[%emt 0:01:56]} Rd7 {[%emt 0:00:36]} 28. Bb5 {[%emt 0:00:08]} Bc6 {[%emt 0:02:37]} 29. Rxd7 {[%emt 0:03:24]} Qxd7 {[%emt 0:00:07]} 30. Bxc6 {[%emt 0:00:44]} Qxc6 {[%emt 0:00:07]} 31. h3 {[%emt 0:02:53]} Qd5 {[%emt 0:02:33]} 32. Qa4 {[%emt 0:01:37]} a5 {[%emt 0:01:19]} 33. Kh2 {[%emt 0:03:22]} Bc5 {[%emt 0:01:56]} 34. Qf4 {[%emt 0:02:00]} Qd3 {[%emt 0:04:17]} 35. Qh4 {[%emt 0:03:26]} Kg7 {[%emt 0:01:54]} 36. Qf6+ {[%emt 0:00:26]} Kg8 {[%emt 0:00:08]} 37. Qh4 {[%emt 0:00:03]} Qd5 {[%emt 0:02:52]} 38. Qf4 {[%emt 0:00:20]} Qd8 {[%emt 0:01:58]} 39. Be1 {[%emt 0:04:19]} b5 {[%emt 0:04:02]} 40. Qc1 {[%emt 0:00:00]} Bb6 {[%emt 0:00:00]} 41. Qc6 {[%emt 0:08:18]} b4 {[%emt 0:03:01]} 42. Qc2 {[%emt 0:01:52]} Qd4 {[%emt 0:03:55]} 43. Qe2 {[%emt 0:02:06]} Bc7 {[%emt 0:00:39]} 44. f4 Qxf4+ {[%emt 0:00:28]} 45. Bg3 {[%emt 0:00:46]} Qd4 {[%emt 0:00:45]} 46. h4 {[%emt 0:01:02]} Bb6 {[%emt 0:05:21]} 47. Qf1 {[%emt 0:05:42]} Qxb2 {[%emt 0:02:28]} 48. Qb5 {[%emt 0:00:43]} Qd4 {[%emt 0:00:54]} 49. Qe8+ {[%emt 0:00:12]} Kg7 {[%emt 0:00:03]} 50. Qe7 {[%emt 0:00:14]} Bd8 {[%emt 0:01:21]} 51. Qb7 {[%emt 0:00:06]} Bxh4 {[%emt 0:00:43]} 0-1

[Event "WYCC 2018 G16"]
[Site "Halkidiki"]
[Date "2018.10.29"]
[Round "10"]
[White "Ortega Beltran, Ximena"]
[Black "Kobald, Jacqueline"]
[Result "0-1"]
[ECO "B49"]
[WhiteElo "1628"]
[BlackElo "1911"]
[Annotator "NA"]
[PlyCount "98"]
[EventDate "2018.10.20"]
[EventType "swiss"]
[EventCountry "GRE"]
[SourceTitle "playchess.com"]
[Source "ChessBase"]
[SourceQuality "1"]
[TimeControl "40/5400+30:1800+30"]

1. e4 {[%emt 0:00:00]} c5 {[%emt 0:00:00]} 2. Nf3 {[%emt 0:00:00]} e6 {[%emt 0:00:00]} 3. d4 {[%emt 0:00:00]} cxd4 {[%emt 0:00:00]} 4. Nxd4 {[%emt 0:00:00]} Nc6 {[%emt 0:00:02]} 5. Nc3 Qc7 {[%emt 0:00:26]} 6. Be3 {[%emt 0:00:54]} a6 {[%emt 0:00:22]} 7. Be2 {[%emt 0:00:17]} Nf6 {[%emt 0:01:17]} 8. O-O {[%emt 0:00:43]} Bb4 {[%emt 0:01:38]} 9. Nxc6 {[%emt 0:06:58]} bxc6 {[%emt 0:03:34]} 10. Na4 {[%emt 0:03:54]} Be7 {[%emt 0:06:23]} 11. Nb6 {[%emt 0:01:38]} Rb8 {[%emt 0:00:15]} 12. Nxc8 {[%emt 0:00:12]} Qxc8 {[%emt 0:00:07]} 13. Bd4 {[%emt 0:06:27]} c5 {[%emt 0:00:24]} 14. Be5 {[%emt 0:02:54]} Rb6 {[%emt 0:00:11]} 15. f4 {[%emt 0:02:27]} d6 {[%emt 0:13:18]} 16. Bc3 {[%emt 0:01:48]} O-O {[%emt 0:12:20]} 17. Qd3 {[%emt 0:16:24]} d5 {[%emt 0:05:37]} 18. e5 {[%emt 0:00:19]} Ne4 {[%emt 0:00:27]} 19. Qf3 {[%emt 0:02:04]} f5 {[%emt 0:08:43]} 20. b3 {[%emt 0:05:07]} Qc6 {[%emt 0:08:45]} 21. Be1 {[%emt 0:07:14]} c4 {[%emt 0:00:46]} 22. Kh1 {[%emt 0:07:16]} cxb3 {[%emt 0:06:23]} 23. cxb3 {[%emt 0:04:53]} Ba3 {[%emt 0:04:44]} 24. Ba5 {[%emt 0:08:44]} Rbb8 {[%emt 0:02:02]} 25. Bd3 {[%emt 0:00:24]} Qc5 {[%emt 0:04:53]} 26. Be1 {[%emt 0:02:15]} a5 {[%emt 0:02:12]} 27. g4 {[%emt 0:03:46]} a4 {[%emt 0:07:54]} 28. Rb1 {[%emt 0:01:29]} axb3 {[%emt 0:00:31]} 29. Rxb3 {[%emt 0:00:16]} Rxb3 {[%emt 0:00:28]} 30. axb3 {[%emt 0:00:06]} Rb8 {[%emt 0:01:43]} 31. gxf5 {[%emt 0:03:38]} exf5 {[%emt 0:00:58]} 32. Bb1 {[%emt 0:10:28]} Qb5 {[%emt 0:03:06]} 33. Bc2 {[%emt 0:00:04]} Rc8 {[%emt 0:01:00]} 34. Bd3 {[%emt 0:00:55]} Qb7 {[%emt 0:01:14]} 35. Rg1 {[%emt 0:02:25]} Bc5 {[%emt 0:02:41]} 36. Rg2 {[%emt 0:00:49]} Bd4 {[%emt 0:00:40]} 37. Qh5 {[%emt 0:00:37]} Qf7 {[%emt 0:01:36]} 38. Qd1 {[%emt 0:00:43]} Be3 {[%emt 0:00:52]} 39. Qf3 {[%emt 0:00:24]} Qa7 {[%emt 0:00:46]} 40. Bxe4 {[%emt 0:00:00]} dxe4 {[%emt 0:00:00]} 41. Qg3 {[%emt 0:01:18]} Rc1 {[%emt 0:06:24]} 42. Re2 {[%emt 0:18:02]} Bb6 {[%emt 0:04:37]} 43. Kg2 {[%emt 0:02:21]} Qa1 {[%emt 0:02:38]} 44. Qh4 {[%emt 0:01:58]} Qa8 {[%emt 0:08:55]} 45. Qe7 {[%emt 0:05:09]} Qc8 {[%emt 0:03:36]} 46. Bb4 {[%emt 0:04:15]} Rc2 {[%emt 0:04:00]} 47. Rxc2 {[%emt 0:00:59]} Qxc2+ {[%emt 0:00:02]} 48. Kh3 {[%emt 0:00:17]} Qd3+ {[%emt 0:01:48]} 49. Kh4 {[%emt 0:00:33]} Bd8 {[%emt 0:00:11]} 0-1

[Event "WYCC 2018 G16"]
[Site "Halkidiki"]
[Date "2018.10.29"]
[Round "10"]
[White "Bania, Eleni"]
[Black "Sosa Suarez, Carla Cristina"]
[Result "0-1"]
[ECO "C02"]
[WhiteElo "1454"]
[BlackElo "2025"]
[Annotator "NA"]
[PlyCount "70"]
[EventDate "2018.10.20"]
[EventType "swiss"]
[EventCountry "GRE"]
[SourceTitle "playchess.com"]
[Source "ChessBase"]
[SourceQuality "1"]
[TimeControl "40/5400+30:1800+30"]

1. e4 {[%emt 0:00:00]} e6 {[%emt 0:00:00]} 2. d4 {[%emt 0:00:00]} d5 {[%emt 0:00:00]} 3. e5 {[%emt 0:00:00]} c5 {[%emt 0:00:00]} 4. c3 {[%emt 0:00:00]} Nc6 {[%emt 0:00:00]} 5. Nf3 {[%emt 0:00:00]} Bd7 {[%emt 0:00:00]} 6. Be2 {[%emt 0:00:14]} f6 {[%emt 0:00:00]} 7. Na3 {[%emt 0:12:05]} cxd4 {[%emt 0:04:30]} 8. cxd4 {[%emt 0:02:17]} a6 {[%emt 0:01:48]} 9. O-O {[%emt 0:05:49]} fxe5 {[%emt 0:04:28]} 10. Nxe5 {[%emt 0:09:49]} Bd6 {[%emt 0:07:10]} 11. Bf4 {[%emt 0:13:50]} Qf6 {[%emt 0:08:10]} 12. Nxc6 {[%emt 0:05:58]} Qxf4 {[%emt 0:01:14]} 13. g3 {[%emt 0:00:34]} Qf6 {[%emt 0:01:13]} 14. Na5 {[%emt 0:01:35]} b6 {[%emt 0:01:01]} 15. Nb3 {[%emt 0:00:24]} Ne7 {[%emt 0:01:38]} 16. Nc2 {[%emt 0:04:46]} O-O {[%emt 0:01:00]} 17. Ne3 {[%emt 0:07:37]} g6 {[%emt 0:02:09]} 18. Ng4 {[%emt 0:03:50]} Qg7 {[%emt 0:00:50]} 19. a4 {[%emt 0:07:43]} a5 {[%emt 0:02:29]} 20. f4 {[%emt 0:06:40]} Nf5 {[%emt 0:05:03]} 21. Rf2 {[%emt 0:02:53]} Bb4 {[%emt 0:12:19]} 22. Ne5 {[%emt 0:00:50]} Rac8 {[%emt 0:01:33]} 23. Qd3 {[%emt 0:05:47]} Nd6 {[%emt 0:04:17]} 24. Nd2 {[%emt 0:00:43]} Bxd2 {[%emt 0:01:53]} 25. Qxd2 {[%emt 0:03:52]} Ne4 {[%emt 0:00:08]} 26. Qd3 {[%emt 0:00:32]} Nxf2 {[%emt 0:00:24]} 27. Kxf2 {[%emt 0:00:08]} g5 {[%emt 0:01:26]} 28. Bf3 {[%emt 0:01:10]} Rc7 {[%emt 0:03:06]} 29. h4 {[%emt 0:03:13]} gxh4 {[%emt 0:09:38]} 30. gxh4 Kh8 {[%emt 0:01:06]} 31. Rg1 {[%emt 0:02:31]} Qf6 {[%emt 0:02:17]} 32. Rg4 {[%emt 0:00:27]} Bxa4 {[%emt 0:01:38]} 33. b3 {[%emt 0:00:28]} Be8 {[%emt 0:01:08]} 34. Qa6 {[%emt 0:00:37]} Bh5 {[%emt 0:01:33]} 35. Qxb6 {[%emt 0:00:31]} Rc2+ {[%emt 0:01:18]} 0-1